Cogmind - Beta 13 @@@ ROGUE MODE // 2024.05.07 @ 23:40:00 Player: GayPredator Result: Destroyed by S-27 Virus with Autogun Performance ------------- Evolutions (6) 3000 Regions Visited (13) 2600 Robots Destroyed (107) 535 Value Destroyed (4506) 4506 Prototype IDs (7) 140 Alien Tech Used (0) 0 Bonus (1380) 1380 TOTAL SCORE: 12161 Bonus ------- High Alert Combat Kills 64 Follower Combat Kills 216 Entered DSFs 500 Aligned with FarCom 300 Acquired ECA 300 Cogmind --------- Core Integrity 0/1150 Matter 275/300 Energy 99/100 System Corruption 4% Temperature Cool (0) Movement Core (50) Location -4/Upper Caves Parts ------- > --- POWER (2) -------- (None) > --- PROPULSION (4) --- (None) > --- UTILITY (8) ------ Makeshift Hacking Suite Advanced System Shield > --- WEAPON (5) ------- (None) > --- INVENTORY (5) ---- Reaction Control System Skeleton Box Component Analysis Suite Peak State ------------ > --- POWER ------------ Light Fission Core Heavy Antimatter Reactor > --- PROPULSION ------- Armored Medium Treads Armored Medium Treads Armored Medium Treads Advanced Medium Treads > --- UTILITY ---------- Improved Cooling System Large Storage Unit Advanced Matter Compressor Encrypted Comm Array Phase Shifter Improved Medium Armor Plating Improved Powered Armor System Shield > --- WEAPON ----------- Proton Cannon Heavy Phase Cannon Heavy Assault Rifle Improved Proton Missile Launcher Chainsword > --- INVENTORY -------- Improved Treads Armored Medium Treads Armored Medium Treads Advanced Heat Sink Medium Armor Plating Medium Reflective Plating Makeshift Hacking Suite Advanced System Shield Skeleton Box Component Analysis Suite Thermic Laser Proton Cannon Gauss Rifle Improved Grenade Launcher [Rating: 102] Favorites ----------- Power Improved Deuterium Engine Engine Improved Deuterium Engine Power Core Light Fission Core Reactor Heavy Antimatter Reactor Propulsion Armored Medium Treads Treads Armored Medium Treads Leg Aluminum Leg Wheel Wheel Utility Large Storage Unit Device Improved Cooling System Storage Large Storage Unit Processor Targeting Computer Hackware Hacking Suite Protection Improved Heavy Armor Plating Weapon Light Assault Rifle Energy Gun Tesla Rifle Energy Cannon Heavy Ion Cannon Ballistic Gun Light Assault Rifle Launcher Improved Proton Missile Launcher Impact Weapon Hammer Slashing Weapon Chainsword Build | -11 -10 -10 -10 -9 -8 -7 -6 -6 -5 -5 -5 -4 -4 ------- Run | Yrd Mat Min Exi Min Mat Fac Fac DSF Fac Upp Upp Fac Upp Slots Evolved 12 | . . . . . 4 2 2 . 2 . . 2 . Power 1 | . . . . . . . . . 1 . . . . Propulsion 2 | . . . . . 1 . . . 1 . . . . Utility 6 | . . . . . 2 1 2 . . . . 1 . Weapon 3 | . . . . . 1 1 . . . . . 1 . Parts Attached 126 | 7 11 2 3 . 15 11 2 6 20 18 . 30 1 Power 14 | 1 1 . . . 1 1 . . 3 4 . 3 . Engine 8 | 1 1 . . . 1 1 . . 2 2 . . . Core 5 | . . . . . . . . . 1 2 . 2 . Reactor 1 | . . . . . . . . . . . . 1 . Propulsion 28 | 2 5 1 1 . 4 1 . 4 4 . . 6 . Treads 22 | 2 2 . 1 . 3 . . 4 4 . . 6 . Leg 3 | . 3 . . . . . . . . . . . . Wheel 3 | . . 1 . . 1 1 . . . . . . . Hover . | . . . . . . . . . . . . . . Flight . | . . . . . . . . . . . . . . Utility 52 | 2 3 . 2 . 4 7 2 1 7 11 . 13 . Device 18 | 1 1 . 1 . 1 1 1 . 3 6 . 3 . Storage 4 | 1 1 . . . . . . . . 1 . 1 . Processor 4 | . 1 . 1 . . . . . 1 1 . . . Hackware 6 | . . . . . 1 3 . . . . . 2 . Protection 20 | . . . . . 2 3 1 1 3 3 . 7 . Artifact . | . . . . . . . . . . . . . . Weapon 32 | 2 2 1 . . 6 2 . 1 6 3 . 8 1 Energy Gun 3 | . . . . . . . . . 1 . . 2 . Energy Cannon 7 | . . . . . . 1 . . 2 1 . 3 . Ballistic Gun 11 | 2 2 . . . 3 . . . . 1 . 2 1 Ballistic Cannon . | . . . . . . . . . . . . . . Launcher 8 | . . 1 . . 1 1 . 1 2 1 . 1 . Special Weapon . | . . . . . . . . . . . . . . Impact Weapon 1 | . . . . . 1 . . . . . . . . Slashing Weapon 2 | . . . . . 1 . . . 1 . . . . Piercing Weapon . | . . . . . . . . . . . . . . Special Melee Weapon . | . . . . . . . . . . . . . . Unidentified Prototypes 7 | . . . 2 . 1 . . . 1 1 . 2 . Corrupted Parts 1 | . . . . . . . . . . 1 . . . System Corruption 2 | . . . . . . . . . . 2 . . . Parts Lost 44 | . 1 . . . 1 . . 3 4 9 . 25 1 Power 9 | . 1 . . . . . . . 1 4 . 3 . Propulsion 6 | . . . . . . . . . . . . 6 . Utility 13 | . . . . . . . . . 1 4 . 8 . Weapon 16 | . . . . . 1 . . 3 2 1 . 8 1 Highest Loss Streak 23 | . 1 . . . 1 . . 2 2 4 . 23 1 To Critical Strikes 2 | . . . . . . . . . 1 . . 1 . Average Slot Usage (%) 90 | . 97 99 95 100 97 93 86 85 86 84 94 85 11 Engine 7 | . 12 14 14 14 9 7 6 6 7 2 5 . . Core 1 | . . . . . . . . . 2 3 5 4 . Treads 21 | . 22 26 15 28 24 22 6 18 22 23 23 18 . Device 5 | . 12 . 1 . . . 6 . 2 8 11 12 . Storage 8 | . 14 14 14 14 9 7 6 6 5 5 11 8 . Processor 3 | . . 14 8 14 9 5 . . 2 . . . . Hackware 8 | . . . . . 8 15 20 20 17 6 5 5 10 Protection 5 | . . . . . 8 6 6 13 5 7 5 8 . Energy Cannon 4 | . . . . . . 5 6 6 6 6 5 8 . Ballistic Gun 10 | . 28 25 14 14 17 15 13 4 . 1 5 4 1 Launcher 4 | . . 2 14 14 6 5 6 7 3 4 5 4 . Slashing Weapon 1 | . . . . . . . . . 2 5 5 4 . Naked Turns 32 | . . . . . . . . . . . . 32 . Heaviest Build 102 | 12 29 29 31 29 43 51 58 69 82 91 65 102 . Greatest Support 111 | 40 40 40 40 40 60 60 28 74 108 108 108 111 3 Greatest Overweight (x) 3 | . 1 2 3 . 3 1 2 1 . 2 . 2 . Average Overweight (x) . | . . . 1 . 1 . 1 . . . . . . Largest Inventory Capacity 15 | 8 15 15 15 15 15 15 15 15 15 15 15 15 5 Average Capacity 14 | 7 11 15 15 15 15 15 15 15 15 15 15 13 5 Most Carried 15 | 4 10 14 15 15 14 15 13 15 15 15 15 15 3 Average Carried 11 | 2 5 11 14 14 10 12 12 14 12 14 15 12 3 Final Capacity 15 | 8 15 15 15 15 15 15 15 15 15 15 15 5 5 Final Carried 15 | 3 10 14 14 15 10 14 12 15 15 15 15 3 3 Class Distribution -------------------- 31% | Mutant 24% | Hacker-Skirmisher 24% | Tank 7% | Hacker-Mutant 6% | Skirmisher 4% | Hacker-Tank Dominant Class ---------------- Mutant | -10/Materials Mutant | -10/Mines Mutant | -10/Exiles Mutant | -9/Mines Skirmisher | -8/Materials Hacker-Skirmisher | -7/Factory Hacker-Skirmisher | -6/Factory Hacker-Tank | -6/DSF Hacker-Skirmisher | -5/Factory Tank | -5/Upper Caves Tank | -5/Upper Caves Tank | -4/Factory Hacker-Mutant | -4/Upper Caves Resources | -11 -10 -10 -10 -9 -8 -7 -6 -6 -5 -5 -5 -4 -4 ----------- Run | Yrd Mat Min Exi Min Mat Fac Fac DSF Fac Upp Upp Fac Upp Matter Collected 3293 | 314 281 35 . 46 185 211 . 212 821 660 102 394 32 Remotely . | . . . . . . . . . . . . . . Salvage Created 4231 | 114 516 28 . 62 359 262 . 236 918 403 286 1001 46 Parts 206 | 2 32 . . 3 26 13 . 11 46 13 7 48 5 Haulers Intercepted 3 | . 2 . . . . . . . 1 . . . . Recyclers Shooed 1 | . . . . . 1 . . . . . . . . Parts Field Recycled . | . . . . . . . . . . . . . . Retrieved Matter . | . . . . . . . . . . . . . . Parts Self-Destructed 19 | . . . . . . . . . . 16 . . 3 Prevented 10 | . . . . . . . . . . 4 6 . . Kills | -11 -10 -10 -10 -9 -8 -7 -6 -6 -5 -5 -5 -4 -4 ------- Run | Yrd Mat Min Exi Min Mat Fac Fac DSF Fac Upp Upp Fac Upp Combat Hostiles Destroyed 83 | . 9 . . 2 6 10 . 9 18 8 4 15 2 Melee 8 | . . . . . . . . . 3 4 . 1 . Guns 21 | . 9 . . . 3 2 . 2 1 . . 2 2 Cannons 8 | . . . . . . . . 1 6 . 1 . . AOE 41 | . . . . 2 3 8 . 6 7 3 3 9 . Classes Destroyed 16 | 2 4 . . 1 3 1 . 2 1 . . 2 . Worker 4 | . . . . . . 1 . . . . . 3 . Builder 9 | . . . . . 1 . . . 5 . . 3 . Tunneler 1 | 1 . . . . . . . . . . . . . Hauler 3 | . 2 . . . . . . . 1 . . . . Recycler 3 | 1 1 . . . 1 . . . . . . . . Operator 3 | . 1 . . . 1 . . . 1 . . . . Watcher 1 | . . . . . . . . . . . . 1 . Swarmer 20 | . 3 . . . . 4 . 3 3 . . 5 2 Grunt 28 | . 6 . . 1 . 6 . 3 3 2 4 3 . Brawler 3 | . . . . 1 . . . . 1 1 . . . Protector 1 | . . . . . . . . . . . . 1 . Sentry 7 | . . . . . 4 . . . 1 1 . 1 . Specialist 2 | . . . . . . . . 2 . . . . . Hunter 14 | . . . . . 2 . . . 6 4 . 2 . Programmer 6 | . . . . . . . . . 4 . . 2 . Heavy 1 | . . . . . . . . 1 . . . . . Infiltrator 1 | . . . . . . . . . . . . 1 . Best Kill Streak 10 | 1 5 . . 2 3 7 . 5 8 2 4 10 2 Combat Bots Only 8 | . 5 . . 2 2 4 . 5 5 2 4 8 2 Max Kills in Single Turn 3 | 1 1 . . 1 2 3 . 3 2 1 1 3 1 Gunslinging . | . . . . . . . . . . . . . . Exploded 3 | . . . . 1 1 3 . 3 2 1 1 2 . Melee 1 | . . . . . . . . . 1 1 . 1 . Uniques/NPCs Destroyed . | . . . . . . . . . . . . . . Combat | -11 -10 -10 -10 -9 -8 -7 -6 -6 -5 -5 -5 -4 -4 -------- Run | Yrd Mat Min Exi Min Mat Fac Fac DSF Fac Upp Upp Fac Upp Hostile Shots Fired 770 | . 43 4 . 1 30 23 . 44 131 104 6 338 46 Missed 225 | . 6 2 . . 5 6 . 17 26 23 4 118 18 Damage Taken 10196 | . 395 26 . 109 445 330 . 858 1851 1658 39 4051 434 Core 1544 | . 41 . . . 15 44 . . 178 116 . 801 349 Absorbed by Shields 63 | . . . . . . . . . . 63 . . . Ignored by Resistances 75 | . . . . . . . . . . . . 75 . Regen/Repaired (Parts) 343 | . 14 . . . . . . . 40 . . 289 . Core Remaining (%) 90 | 100 . . . 83 97 93 . 100 . . 70 . . Volleys Fired 238 | 11 54 14 . 1 19 9 . 18 41 23 6 37 5 Largest 4 | 2 2 2 . 2 3 3 . 4 3 2 2 4 1 Hottest 231 | 40 40 40 . 50 70 83 . 148 211 171 113 231 30 Shots Fired 419 | 22 108 15 . 2 45 18 . 38 61 25 11 69 5 Gun 242 | 22 108 15 . 1 36 14 . 11 7 . 5 18 5 Cannon 91 | . . . . . . . . 11 43 13 1 23 . Launcher 86 | . . . . 1 9 4 . 16 11 12 5 28 . Special . | . . . . . . . . . . . . . . Kinetic 233 | 22 108 15 . 1 36 14 . 11 . . 5 16 5 Thermal 47 | . . . . . . . . 11 18 5 1 12 . Explosive 56 | . . . . 1 9 4 . 16 11 10 . 5 . Electromagnetic 83 | . . . . . . . . . 32 10 5 36 . Robot Hit Streak 19 | 5 10 3 . 1 7 3 . 6 19 7 3 8 2 Robot Miss Streak 7 | 5 3 2 . 1 3 4 . 7 3 5 1 3 2 Penetration Max . | . . . . . . . . . . . . . . Secondary Targets . | . . . . . . . . . . . . . . Shots Hit Robots 280 | 13 72 9 . 1 31 11 . 23 47 22 7 42 2 Core Hits 212 | 3 25 6 . 1 18 16 . 20 45 15 10 51 2 Critical Kills 1 | . . . . . 1 . . . . . . . . Critical Parts Destroyed . | . . . . . . . . . . . . . . Critical Strikes 9 | . . . . . 1 . . . 4 4 . . . Destroy 1 | . . . . . 1 . . . . . . . . Sever 8 | . . . . . . . . . 4 4 . . . Melee Attacks 50 | . . . . . 1 . . . 18 19 . 12 . Impact 1 | . . . . . 1 . . . . . . . . Slashing 49 | . . . . . . . . . 18 19 . 12 . Piercing . | . . . . . . . . . . . . . . Sneak Attacks 4 | . . . . . . . . . 3 . . 1 . Combat Hostiles . | . . . . . . . . . . . . . . Follow-up Attacks . | . . . . . . . . . . . . . . Damage Inflicted 12080 | 128 728 68 . 71 470 958 . 1128 3212 1191 476 3604 46 Guns 1933 | 128 719 68 . . 274 163 . 160 178 . 33 164 46 Cannons 1367 | . . . . . . . . 109 705 111 35 407 . Explosions 7381 | . . . . 66 181 755 . 859 1628 637 408 2847 . Melee 1283 | . . . . . . . . . 654 443 . 186 . Ramming 116 | . 9 . . 5 15 40 . . 47 . . . . Kinetic 1737 | 128 719 68 . . 274 163 . 160 . . 33 146 46 Thermal 998 | . . . . . . . . 109 313 . 35 541 . Explosive 4818 | . . . . 66 181 755 . 859 1522 571 . 864 . Electromagnetic 3128 | . . . . . . . . . 676 177 408 1867 . Impact . | . . . . . . . . . . . . . . Slashing 1283 | . . . . . . . . . 654 443 . 186 . Piercing . | . . . . . . . . . . . . . . Highest Corruption 18 | . . . . . . 1 . 1 8 18 18 4 4 Average Corruption 9 | . . . . . . 1 . 1 7 15 18 2 4 Corruption Purged 2 | . . . . . . . . . 2 . . . . Corruption Blocked . | . . . . . . . . . . . . . . Effects 87 | . . . . . . 2 . . 34 37 8 5 1 Message Errors 25 | . . . . . . . . . 9 12 2 1 1 Matter Fused 14 | . . . . . . . . . 4 8 1 1 . Heat Flow Errors 13 | . . . . . . 2 . . 6 5 . . . Energy Discharges 9 | . . . . . . . . . 2 6 . 1 . Parts Fused 2 | . . . . . . . . . 2 . . . . Data Loss (minor) 11 | . . . . . . . . . 5 2 3 1 . Data Loss (major) 2 | . . . . . . . . . . 1 1 . . Misfires 5 | . . . . . . . . . 2 2 1 . . Alerts 2 | . . . . . . . . . 2 . . . . Weapon Failures 4 | . . . . . . . . . 2 1 . 1 . Overload Shots . | . . . . . . . . . . . . . . Overflow Damage 182 | . . . . . 38 47 . 11 68 2 . 16 . Projectiles 11 | . . . . . . . . . 11 . . . . Explosions 171 | . . . . . 38 47 . 11 57 2 . 16 . Melee . | . . . . . . . . . . . . . . Knockbacks 1 | . . . . . . 1 . . . . . . . Impact 1 | . . . . . . 1 . . . . . . . Kinetic . | . . . . . . . . . . . . . . Secondary . | . . . . . . . . . . . . . . Self-Inflicted Damage 277 | . . . . 32 81 . . 28 . 46 . 90 . Shots 12 | . . . . 1 4 . . 1 . 3 . 3 . Rammed 12 | . 2 . . 1 2 2 . . 5 . . . . Targets Rammed 15 | . 4 . . 1 2 2 . . 6 . . . . Kicked 2 | . 2 . . . . . . . . . . . . Crushed 1 | . . . . . . . . . 1 . . . . Highest Temperature 460 | . 9 . . 10 56 224 . 28 460 310 54 194 . Average Temperature 97 | . 5 . . 7 21 76 . 10 176 89 29 52 . Received Heat Transfer 892 | . 153 . . . 99 45 . 72 99 52 18 354 . Effects 5 | . . . . . . . . . 4 1 . . . Shutdowns 3 | . . . . . . . . . 3 . . . . Matter Decay 1 | . . . . . . . . . 1 . . . . Short Circuit 1 | . . . . . . . . . . 1 . . . Siege Activations . | . . . . . . . . . . . . . . Robots Corrupted 8 | . . . . . . . . . 2 1 . 5 . Combat Hostiles 5 | . . . . . . . . . 1 1 . 3 . Parts Fried 19 | . . . . . . . . . 5 . 4 10 . Impact Corruptions . | . . . . . . . . . . . . . . Robots Melted . | . . . . . . . . . . . . . . Combat Hostiles . | . . . . . . . . . . . . . . Parts Melted . | . . . . . . . . . . . . . . Heat Transferred 1139 | . . . . . . . . 148 407 . 37 547 . Parts Sabotaged . | . . . . . . . . . . . . . . Parts Stolen . | . . . . . . . . . . . . . . Parts Stripped . | . . . . . . . . . . . . . . Power Chain Reactions 5 | . . . . . . . . . 1 . 1 3 . Alert | -11 -10 -10 -10 -9 -8 -7 -6 -6 -5 -5 -5 -4 -4 ------- Run | Yrd Mat Min Exi Min Mat Fac Fac DSF Fac Upp Upp Fac Upp Peak Influence 523 | 10 156 155 . 74 249 360 179 390 523 . . 418 . Initial 204 | . 6 16 . . 28 73 176 125 204 . . 109 . Average 148 | 3 70 65 . 72 107 78 176 290 263 . . 182 . Maximum Alert Level 2 | . . . . . 1 1 . 1 2 . . 2 . Low Security (%) 70 | 100 100 100 . 100 96 87 100 29 31 . . 55 . Level 1 21 | . . . . . 3 12 . 70 40 . . 40 . Level 2 7 | . . . . . . . . . 28 . . 4 . Level 3 . | . . . . . . . . . . . . . . Level 4 . | . . . . . . . . . . . . . . Level 5 . | . . . . . . . . . . . . . . High Security . | . . . . . . . . . . . . . . Max Security . | . . . . . . . . . . . . . . Sterilizations 1 | . . . . . . . . 1 . . . . . Squads Dispatched 17 | . 1 . . . 1 4 . 2 5 . . 4 . Investigation 3 | . . . . . . 1 . . 1 . . 1 . Extermination 4 | . . . . . . 1 . . 2 . . 1 . Reinforcement 8 | . 1 . . . 1 . . 2 2 . . 2 . Assault . | . . . . . . . . . . . . . . Garrison 2 | . . . . . . 2 . . . . . . . Intercept . | . . . . . . . . . . . . . . Searches Triggered . | . . . . . . . . . . . . . . Construction Impeded 3 | . . . . . . . . . 2 . . 1 . Haulers Reinforced . | . . . . . . . . . . . . . . Active Scanning Responses . | . . . . . . . . . . . . . . Cargo Convoy Interrupts 1 | . . . . . . . . . . . . 1 . Stealth | -11 -10 -10 -10 -9 -8 -7 -6 -6 -5 -5 -5 -4 -4 --------- Run | Yrd Mat Min Exi Min Mat Fac Fac DSF Fac Upp Upp Fac Upp Distress Signals 6 | . 3 . . . . . . . 1 . . 2 . Communications Jammed . | . . . . . . . . . . . . . . Distress Signals . | . . . . . . . . . . . . . . Times Spotted 133 | . 18 6 . 1 8 9 . 10 16 13 4 41 7 Peak Tracking Total 13 | . 6 4 . 1 2 4 . 4 6 4 4 13 7 Tactical Retreats 13 | . 1 . . . 1 . . 1 1 2 1 5 1 Traps | -11 -10 -10 -10 -9 -8 -7 -6 -6 -5 -5 -5 -4 -4 ------- Run | Yrd Mat Min Exi Min Mat Fac Fac DSF Fac Upp Upp Fac Upp Traps Triggered 9 | . . . . . . 2 . . . . . 7 . Indirectly 5 | . . . . . . . . . . . . 5 . Trap Hack Attempts . | . . . . . . . . . . . . . . Triggered . | . . . . . . . . . . . . . . Disarmed . | . . . . . . . . . . . . . . Reprogrammed . | . . . . . . . . . . . . . . Reused . | . . . . . . . . . . . . . . Traps Extracted . | . . . . . . . . . . . . . . Installed . | . . . . . . . . . . . . . . Triggered 2 | . . . . . . . . . . 1 . 1 . Machines | -11 -10 -10 -10 -9 -8 -7 -6 -6 -5 -5 -5 -4 -4 ---------- Run | Yrd Mat Min Exi Min Mat Fac Fac DSF Fac Upp Upp Fac Upp Machines Disabled 25 | . . . . . 2 13 . 1 3 . . 6 . Max in Single Turn 6 | . . . . . 1 6 . 1 3 . . 4 . Garrison Access 2 | . . . . . . 1 . . 1 . . . . Machines Repaired . | . . . . . . . . . . . . . . Machines Dismantled . | . . . . . . . . . . . . . . Machines Sabotaged . | . . . . . . . . . . . . . . Overloaded Fab Kills . | . . . . . . . . . . . . . . Hacking | -11 -10 -10 -10 -9 -8 -7 -6 -6 -5 -5 -5 -4 -4 --------- Run | Yrd Mat Min Exi Min Mat Fac Fac DSF Fac Upp Upp Fac Upp Machines Accessed 26 | . 3 . 1 . 2 9 1 . 9 . . 1 . Terminals 11 | . 1 . . . 1 4 1 . 4 . . . . Fabricators 4 | . . . . . . 1 . . 2 . . 1 . Repair Stations 2 | . 1 . . . . . . . 1 . . . . Recycling Units 4 | . 1 . . . 1 2 . . . . . . . Scanalyzers 2 | . . . . . . 1 . . 1 . . . . Garrison Access 2 | . . . . . . 1 . . 1 . . . . Total Hacks 67 | . 9 . 1 . 4 23 1 . 27 . . 2 . Successful 43 | . 3 . 1 . 3 18 1 . 15 . . 2 . Failed 24 | . 6 . . . 1 5 . . 12 . . . . Catastrophic 1 | . 1 . . . . . . . . . . . . Database Lockouts . | . . . . . . . . . . . . . . Manual 12 | . 3 . 1 . 1 3 . . 4 . . . . Terminals 35 | . 3 . . . 2 10 1 . 19 . . . . Fabricators 7 | . . . . . . 1 . . 4 . . 2 . Repair Stations 6 | . 4 . . . . . . . 2 . . . . Recycling Units 9 | . 2 . . . 2 5 . . . . . . . Scanalyzers 7 | . . . . . . 6 . . 1 . . . . Garrison Access 2 | . . . . . . 1 . . 1 . . . . Terminal Hacks 14 | . . . 1 . 1 4 1 . 7 . . . . Record 4 | . . . 1 . . . . . 3 . . . . Part Schematic 1 | . . . . . . 1 . . . . . . . Open DSF 1 | . . . . . . . 1 . . . . . . Level Access Points 1 | . . . . . . . . . 1 . . . . Emergency Access Points 1 | . . . . . . 1 . . . . . . . Machine Index 1 | . . . . . . . . . 1 . . . . Unreport Threat 1 | . . . . . . 1 . . . . . . . Locate Traps 3 | . . . . . 1 . . . 2 . . . . Zone Layout 1 | . . . . . . 1 . . . . . . . Fabricator Hacks 5 | . . . . . . 1 . . 2 . . 2 . Network Status 1 | . . . . . . 1 . . . . . . . Load Schematic 1 | . . . . . . . . . . . . 1 . Build 3 | . . . . . . . . . 2 . . 1 . Repair Station Hacks 4 | . 2 . . . . . . . 2 . . . . Scan Component 2 | . 1 . . . . . . . 1 . . . . Repair 2 | . 1 . . . . . . . 1 . . . . Recycling Unit Hacks 6 | . 1 . . . 1 4 . . . . . . . Report Inventory 3 | . 1 . . . . 2 . . . . . . . Retrieve Components 3 | . . . . . 1 2 . . . . . . . Scanalyzer 6 | . . . . . . 6 . . . . . . . Insert Component 3 | . . . . . . 3 . . . . . . . Analyze 3 | . . . . . . 3 . . . . . . . Garrison Access Hacks 2 | . . . . . . 1 . . 1 . . . . Seal Access 2 | . . . . . . 1 . . 1 . . . . Unauthorized Hacks 6 | . . . . . 1 2 . . 3 . . . . Terminals 6 | . . . . . 1 2 . . 3 . . . . Botnet 6 | . . . . . 1 2 . . 3 . . . . Fabricators . | . . . . . . . . . . . . . . Repair Stations . | . . . . . . . . . . . . . . Recycling Units . | . . . . . . . . . . . . . . Scanalyzers . | . . . . . . . . . . . . . . Garrison Access . | . . . . . . . . . . . . . . Data Cores Recovered 1 | . . . . . . . . . 1 . . . . Used 1 | . . . . . . . . . 1 . . . . Hacking Detections 19 | . 2 . . . 2 7 . . 7 . . 1 . Full Trace Events 2 | . . . . . . 1 . . . . . 1 . Feedback Events . | . . . . . . . . . . . . . . Feedback Blocked . | . . . . . . . . . . . . . . Robot Schematics Acquired . | . . . . . . . . . . . . . . Robots Built 3 | . . . . . . . . . 3 . . . . Authchips . | . . . . . . . . . . . . . . Time 134 | . . . . . . . . . 134 . . . . Total Robot Build Rating 12 | . . . . . . . . . 12 . . . . Part Schematics Acquired 3 | . . . . . . 3 . . . . . . . Parts Built 3 | . . . . . . . . . 1 . . 2 . Authchips . | . . . . . . . . . . . . . . Time 157 | . . . . . . . . . 106 . . 51 . Total Part Build Rating 8 | . . . . . . . . . 6 . . 2 . Parts Repaired 2 | . 1 . . . . . . . 1 . . . . Time 64 | . 26 . . . . . . . 38 . . . . Parts Recycled . | . . . . . . . . . . . . . . Recycled Matter . | . . . . . . . . . . . . . . Retrieved Matter . | . . . . . . . . . . . . . . Retrieved Components 7 | . . . . . 4 3 . . . . . . . Parts Scanalyzed 3 | . . . . . . 3 . . . . . . . Part Schematics Acquired 2 | . . . . . . 2 . . . . . . . Parts Damaged . | . . . . . . . . . . . . . . Bothacking | -11 -10 -10 -10 -9 -8 -7 -6 -6 -5 -5 -5 -4 -4 ------------ Run | Yrd Mat Min Exi Min Mat Fac Fac DSF Fac Upp Upp Fac Upp Used RIF Installer . | . . . . . . . . . . . . . . Robots Hacked . | . . . . . . . . . . . . . . Non-combat . | . . . . . . . . . . . . . . Combat . | . . . . . . . . . . . . . . Robot Hacks Applied . | . . . . . . . . . . . . . . Relay Couplers Released . | . . . . . . . . . . . . . . Fabnet Peak Effective % . | . . . . . . . . . . . . . . Robots Rewired . | . . . . . . . . . . . . . . Allies Hacked . | . . . . . . . . . . . . . . Hacks Repelled . | . . . . . . . . . . . . . . Allies | -11 -10 -10 -10 -9 -8 -7 -6 -6 -5 -5 -5 -4 -4 -------- Run | Yrd Mat Min Exi Min Mat Fac Fac DSF Fac Upp Upp Fac Upp Total Allies 6 | . . 3 . . . . . . 3 . . . . Largest Group 3 | . . 3 . . . . . . 3 3 . . . Highest-Rated Group 90 | . . 40 . . . . . . 90 90 . . . Highest-Rated Ally 30 | . . 16 . . . . . . 30 30 . . . Warlord Squad Rendezvous 1 | . . . . . . . . . . . . 1 . Ghost 1 | . . . . . . . . . . . . 1 . Total Orders 2 | . . . . . . . . . . 2 . . . EXPLORE 2 | . . . . . . . . . . 2 . . . Ally Attacks 31 | . . 16 . . . . . . . 15 . . . Total Damage 677 | . . 185 . . . . . . . 492 . . . Kills 8 | . . 5 . . . . . . . 3 . . . Allies Corrupted 2 | . . . . . . . . . . 2 . . . Allies Melted . | . . . . . . . . . . . . . . Intel | -11 -10 -10 -10 -9 -8 -7 -6 -6 -5 -5 -5 -4 -4 ------- Run | Yrd Mat Min Exi Min Mat Fac Fac DSF Fac Upp Upp Fac Upp Robot Analysis Total . | . . . . . . . . . . . . . . Derelict Logs Recovered 3 | . . . . 1 . . . . . 2 . . . Drone Launches 2 | . . . . . . . . . . 2 . . . Drone Recoveries . | . . . . . . . . . . . . . . Exploration | -11 -10 -10 -10 -9 -8 -7 -6 -6 -5 -5 -5 -4 -4 ------------- Run | Yrd Mat Min Exi Min Mat Fac Fac DSF Fac Upp Upp Fac Upp Turns Passed 7831 | 109 917 593 342 83 741 1012 5 214 1544 940 156 1125 50 Spaces Moved 3971 | 43 413 348 292 48 402 581 3 80 634 384 78 589 76 Core 255 | 9 . . . . . . . . . . . 170 76 Treads 3145 | 34 329 313 20 48 264 542 . 80 634 384 78 419 . Legs 84 | . 84 . . . . . . . . . . . . Wheels 487 | . . 35 272 . 138 39 3 . . . . . . Hover . | . . . . . . . . . . . . . . Flight . | . . . . . . . . . . . . . . Fastest Speed 50 | 50 120 110 110 160 125 115 115 163 170 170 170 50 50 Average Speed 152 | 136 161 154 115 160 149 159 120 187 170 171 170 132 50 Slowest Speed 330 | 160 240 160 160 160 163 163 130 250 170 330 170 241 50 Overloaded Moves . | . . . . . . . . . . . . . . Propulsion Burnouts . | . . . . . . . . . . . . . . Robots Hopped . | . . . . . . . . . . . . . . Cave-ins Triggered . | . . . . . . . . . . . . . . Time Travels 1 | . . . 1 . . . . . . . . . . Exploration Rate (%) 31 | 6 49 72 62 14 31 18 . 48 16 51 14 10 18 Regions Visited 13 Branch Regions 6 Pre-discovered Areas 3 | . . . 1 1 . . . . . 1 . . . Known Exits Taken 3 | . . . . . . . 1 . . . 1 1 . Unknown Exits Taken 9 | 1 1 1 1 1 1 1 . . 1 1 . . . Scrap Searched 8 | . . 1 . 1 . . . . . 5 . . 1 Spaces Dug 11 | . . . . . 1 . . . 2 . . 8 . Terrain Destroyed 483 | . . . . 9 51 31 . 73 83 152 4 80 . Melee 11 | . . . . . 1 . . . 2 . . 8 . Projectile 8 | . . . . . . . . 1 1 3 . 3 . AOE 464 | . . . . 9 50 31 . 72 80 149 4 69 . Terrain Rammed . | . . . . . . . . . . . . . . Walls Destroyed . | . . . . . . . . . . . . . . Machines Disabled . | . . . . . . . . . . . . . . Actions | -11 -10 -10 -10 -9 -8 -7 -6 -6 -5 -5 -5 -4 -4 --------- Run | Yrd Mat Min Exi Min Mat Fac Fac DSF Fac Upp Upp Fac Upp Total 5284 | 71 564 389 299 52 505 648 4 116 1009 611 91 843 82 Wait 765 | 6 64 18 . . 53 25 . 2 269 152 8 168 . Move 3958 | 42 412 347 291 47 401 580 2 79 633 383 77 588 76 Hop . | . . . . . . . . . . . . . . Pick Up 58 | 5 8 4 2 2 4 10 . 4 10 7 . 2 . Fast Attach 67 | 5 10 1 1 . 4 7 . 3 9 11 . 15 1 Attach 46 | 2 . . 1 . 5 2 2 3 11 5 . 15 . Detach 12 | . 1 1 1 . . . . 2 4 1 . 2 . Swap 13 | . 1 1 1 . 6 2 . . . 2 . . . Drop 60 | . 10 1 2 1 10 11 . 5 8 8 . 4 . Fire 238 | 11 54 14 . 1 19 9 . 18 41 23 6 37 5 Melee 50 | . . . . . 1 . . . 18 19 . 12 . Ram . | . . . . . . . . . . . . . . Kick 2 | . 2 . . . . . . . . . . . . Crush 13 | . 2 . . 1 2 2 . . 6 . . . . Escape Stasis . | . . . . . . . . . . . . . . Rewire 2 | . . 2 . . . . . . . . . . . Trap . | . . . . . . . . . . . . . . Miscellaneous . | . . . . . . . . . . . . . . Route ------- -11/Scrapyard -10/Materials (discovered 2 exits: [*Mat] / [*Min]) -10/Mines (discovered 3 exits: [*Mat x2] / *Exi) -10/Exiles -9/Mines -8/Materials -7/Factory -6/Factory -6/DSF -5/Factory (discovered 5 exits: Fac x4 / [*Upp]) -5/Upper Caves -5/Upper Caves -4/Factory -4/Upper Caves History --------- Turn | Location | Event 10 | -11/Scrapyard | Discovered new exit (range 16) 110 | -11/Scrapyard | Entered Materials 305 | -10/Materials | Build established: Mutant 606 | -10/Materials | Discovered new exit (range 14) 682 | -10/Materials | Discovered new exit (range 16) 796 | -10/Materials | Repaired Seismic Detector 1027 | -10/Materials | Entered Mines 1035 | -10/Mines | Assisted by bots powering up and referring to "LRC-V3" 1134 | -10/Mines | YI-UF0 nonchalantly dropped a Grenade Launcher on the ground 1150 | -10/Mines | Discovered new exit (range 5) 1263 | -10/Mines | Found a damaged Exp. Sensor Array with a note attached 1267 | -10/Mines | Found Prototype Device 1415 | -10/Mines | Discovered new exit (range 5) 1476 | -10/Mines | Assembled infested the area 1523 | -10/Mines | Lost 3 allies 1615 | -10/Mines | Discovered new exit (range 5) 1620 | -10/Mines | Entered Exiles 1652 | -10/Exiles | Met 8R-AWN 1670 | -10/Exiles | Met EX-HEX 1714 | -10/Exiles | Met EX-DEC 1718 | -10/Exiles | Learned location of Zion (-6) 1737 | -10/Exiles | Met EX-BIN 1752 | -10/Exiles | Aligned with FarCom system 1753 | -10/Exiles | Given EX-Vault access code 1779 | -10/Exiles | Opened EX-Vault 1786 | -10/Exiles | Found Prototype Device 1787 | -10/Exiles | Identified Chronowheel 1787 | -10/Exiles | Activated Chronowheel 1787 | -10/Exiles | Spacetime reconverged on an earlier point 1813 | -10/Exiles | Warned to stay clear of 0b10 Research branches 1838 | -10/Exiles | Found Prototype Device 1838 | -10/Exiles | Identified Skeleton Box 1948 | -10/Exiles | Discovered new exit (range 10) 1962 | -10/Exiles | Left Exiles lab with Skeleton Box 1962 | -10/Exiles | Entered Mines 1998 | -9/Mines | Met a Derelict bent on vengeance 2033 | -9/Mines | Discovered new exit (range 8) 2045 | -9/Mines | Entered Materials 2045 | -8/Materials | Evolved 4 slots: Propulsion x1, Utility x2, Weapon x1 2056 | -8/Materials | Identified Exp. Sensor Array 2570 | -8/Materials | Discovered new exit (range 5) 2786 | -8/Materials | Entered Factory 2786 | -7/Factory | Evolved 2 slots: Utility x1, Weapon x1 3354 | -7/Factory | Build established: Hacker-Skirmisher 3643 | -7/Factory | Garrison activated, responded to threat 3773 | -7/Factory | Discovered new exit (range 5) 3798 | -7/Factory | Entered another Factory area 3798 | -6/Factory | Evolved 2 slots: Utility x2 3802 | -6/Factory | Identified exit to DSF 3803 | -6/Factory | Entered DSF 3842 | -6/DSF | Additional patrols routed to DSF 3885 | -6/DSF | Discovered new exit (range 15) 3949 | -6/DSF | Sterilization system engaged 3969 | -6/DSF | Ambient heat levels rising (+10) 3984 | -6/DSF | Ambient heat levels rising (+10) 3999 | -6/DSF | Ambient heat levels rising (+10) 4014 | -6/DSF | Ambient heat levels rising (+10) 4017 | -6/DSF | Entered Factory 4017 | -5/Factory | Evolved 2 slots: Power x1, Propulsion x1 4254 | -5/Factory | Repaired Imp. Grenade Launcher 4337 | -5/Factory | Identified exit to Factory 4404 | -5/Factory | Found Imp. Powered Armor 4911 | -5/Factory | Fabricated Lrn. Proton Cannon (x1) 5377 | -5/Factory | Fabricated L-41 Fighter (x3) 5421 | -5/Factory | Discovered new exit (range 5) 5561 | -5/Factory | Entered Upper Caves 5561 | -5/Upper Caves | Accompanied by 3 allies 5659 | -5/Upper Caves | Lost 3 allies 5663 | -5/Upper Caves | System corruption reached 10% 5705 | -5/Upper Caves | Met a Warlord Commander 5706 | -5/Upper Caves | Learned location of Warlord (-5) 5707 | -5/Upper Caves | Warlord Commander delivered Encrypted Comm Array 5708 | -5/Upper Caves | Found Encrypted Comm Array 5709 | -5/Upper Caves | Lost 4 parts (2p2u) 5736 | -5/Upper Caves | Learned location of 1 exit from Factory 5845 | -5/Upper Caves | Attracted the attention of an 0b10 checkpoint 6212 | -5/Upper Caves | Lost 4 parts (2p2u) 6236 | -5/Upper Caves | Build established: Tank 6458 | -5/Upper Caves | Discovered new exit (range 8) 6480 | -5/Upper Caves | Learned Factory terminal intel 6501 | -5/Upper Caves | Entered another Upper Caves area 6620 | -5/Upper Caves | Discovered exit to Factory (range 12) 6657 | -5/Upper Caves | Entered Factory 6657 | -4/Factory | Evolved 2 slots: Utility x1, Weapon x1 6658 | -4/Factory | Identified exit to Upper Caves 6659 | -4/Factory | Loaded intel: 28 terminal locations 7312 | -4/Factory | Destroyed 8 combat bots 7325 | -4/Factory | Joined by Warlord Ghost squad 7566 | -4/Factory | Cargo convoy interrupted 7652 | -4/Factory | Released all parts (5) 7678 | -4/Factory | Lost 23 parts (3p6n6u8w) 7737 | -4/Factory | Fabricated Lgt. Treads? 7762 | -4/Factory | Core integrity fell below 50% 7782 | -4/Factory | Entered Upper Caves 7817 | -4/Upper Caves | Core integrity fell below 20% 7832 | -4/Upper Caves | Destroyed by S-27 Virus with Autogun Last Messages --------------- 07771_ Slug penetrates Wall. 07777_ Penetrated by Slug. LOCATION=UPPER CAVES GOAL=ESCAPE 07792_ C4GE%HKYKT4K4R GGTXEMDUP%BF8|E9WW 07797_ Penetrated by Slug. 07818_ Searching scrap... 07818_ Found Particle Charger. 07818_ Found Coil Gun. 07818_ Found 35 Matter. 07819_ Acquired 32 matter. 07819_ Acquired Coil Gun. 07820_ Slug penetrates Wall. 07822_ S-27 Virus destroyed. 07826_ VTOL Module fries itself beyond repair. 07826_ Slug penetrates Wall. 07828_ VTOL Module fries itself beyond repair. 07828_ Slug penetrates Wall. 07829_ Coil Gun destroyed. Map ----- +----------------------------------------------------+ | ?????????????????????????????????????????????????? | | ?????????????????????????????????????????????????? | | ?????????????????????????????????????????????????? | | ?????????????????????????????????????????????????? | | ?????????????????????????????????????????????????? | | ?????????????????????????????????????????????????? | | ?????????????????????????????????????????????????? | | ?????????????????????????????????????????????????? | | ?????????????????????????????????????????????????? | | ?????????????????????????????????????????????????? | | ?????????????????????????????????????????????????? | | ?????????????????????????????????????????????????? | | ?????????????????????????????????????????????????? | | ????????????????????#????????????????????????????? | | ????????????????????# ???????????????????????????? | | ????????????????????# ???????????????????????????? | | ???????????????????## ????####??????????????????? | | ???????????????????# ???##""#??????????????????? | | ???????????????????# ?##"""???????????????????? | | ???????????????????# ##"""##??????????????????? | | ????????????????????# # ""###????????????????? | | ?????????????????????# %! #???????###??##??? | | ?????????????????????### #??????# ## ??? | | ???????????????????????## ##?#### ?? | | ??????????????# ##### ### ?? | | ?????????????# @ ??? | | ????????????# [* #?????????? | | ???????????# ######### % ##?????????? | | ??????????? ??????????## sss ##?????????? | | ??????????? ????????????????## #?????????? | | ??????????????????????????????##### #?????????? | | ??????????????????????????????????# ###?????????? | | ??????????????????????????????????# #???????????? | | ??????????????????????????????????# #???????????? | | ??????????????????????????????????# #???????????? | | ????????????????????????????####### #???????####? | | ????????????????????????????# #??????## ## | | ????????????????????????????# ##### ###????# # | | ??????????????????????????????????# #???## | | ?????????????????????????????????# # ##### | | ?????????????????????????????????## #?? | | ??????????????????????????????????## # ##? | | ???????????????????????????????????## ##### ## | | ????????????????????????????????? #???## # | | ??????????????????????????????# ###????# # | | ??????????????????????????????# ##### ??????# # | | ??????????????????????????????#???????#????### ## | | ??????????????????????????????????????# ?### ###? | | ??????????????????????????????????????# # ##?? | | ??????????????????????????????? ## ##? | +----------------------------------------------------+ Best States ------------- Heat Dissipation 70 Energy Generation 39 Energy Capacity 555 Matter Stores 406 Matter Capacity 700 Sight Range 16 Terrain Scan Range 16 Terrain Scan Density 10 Armor Coverage 1050 Resistance: TH 15 Phase Shifting 5 Evasion (%) 55 Targeting Accuracy 8 Core Analysis 6 Recoil Reduction 4 Offensive Hacking 20 Defensive Hacking 14 Item Schematics ----------------- Gauss Cannon | -7/Factory | Hacked Med. Armor Plating | -7/Factory | Scanalyzed Lgt. Treads | -7/Factory | Scanalyzed Robot Schematics ------------------ None Fabricated ------------ Lrn. Proton Cannon | x1 | -5/Factory | Preloaded L-41 Fighter | x3 | -5/Factory | Preloaded Lgt. Treads | x2 | -4/Factory Alien Tech Used ----------------- None Achievements -------------- None Challenges ------------ None Game ------ Seed NavigationReinforcedShotgun Manual? 0 Play Time 01:37:44 Cumulative 85.4 hours Start 2024.05.07 @ 21:57:53 End 2024.05.07 @ 23:40:00 Sessions 1 Manual Loads 0 Difficulty Rogue Special Mode None Game No. 64 Rogue 25 Adventurer 32 Explorer 7 Win Type - Total 0 Types 0/0/0/0/0/0/0/0/0 Lore% 25 Gallery% 56 Achievement% 42 Wizard Run 0 Options --------- Layout 1 ASCII 0 Keyboard 0 Movement Numpad Keybinds 0 Fullscreen 1 Font 16/SmallcapsGlow Map View 50x40 Zoom Use 2% Tactical HUD 1 Map Filters NONE Filters NONE Steam SD RUN: 0adad8f9-5084-4d54-8467-c7d88385cbdd